{"text_format":"3","workbook":"xlsx","n_sheets":5,"sheets":["Termékértékesítési jelentés","Előzmények","Árlista","Irányár-kimutatás","Értékesítésitendencia-kimutatás"],"not_rendered":{"charts":2,"defined_names":6,"pivot_tables":2},"read":"whole","date_system":"1900"}

{"sheet":"Termékértékesítési jelentés","index":0,"n_rows":20,"n_cols":2,"rows_kept":20}
[null,"Termékértékesítési jelentés"]
{"$rows_empty":18}
[null," Termékek"]

{"sheet":"Előzmények","index":1,"n_rows":33,"n_cols":10,"rows_kept":33}
[null,"Korábbi termékárlista és értékesítések"]
[]
[null,"Termékazonosító","Terméknév","Ár dátuma","Egységenkénti kiskereskedelmi ár","Egységenkénti nagykereskedelmi ár*","Eladott mennyiség (kiskereskedelem)","Eladott mennyiség (nagykereskedelem)","Összes értékesítés (#)","Összes értékesítés (Ft)"]
[null,5,{"$f":"IFERROR(IF(táblázatÉrtékesítés[[#This Row],[Termékazonosító]]<>\"\",VLOOKUP(táblázatÉrtékesítés[Termékazonosító],táblázatTermékek[[Termékazonosító]:[Név]],2,FALSE),\"\"),\"Ismeretlen termékazonosító\")","v":"Rövidnadrág"},"2012-01-01",20,{"v":20,"d":"20 Ft"},629,{"v":1254,"d":"1,254"},{"$f":"táblázatÉrtékesítés[[#This Row],[Eladott mennyiség (kiskereskedelem)]]+táblázatÉrtékesítés[[#This Row],[Eladott mennyiség (nagykereskedelem)]]","v":{"v":1883,"d":"1,883"}},{"$f":"táblázatÉrtékesítés[[#This Row],[Eladott mennyiség (kiskereskedelem)]]*táblázatÉrtékesítés[[#This Row],[Egységenkénti kiskereskedelmi ár]]+táblázatÉrtékesítés[[#This Row],[Eladott mennyiség (nagykereskedelem)]]*táblázatÉrtékesítés[[#This Row],[Egységenkénti nagykereskedelmi ár*]]","v":{"v":37660,"d":"37,660 Ft"}}]
[null,1,{"$f":"IFERROR(IF(táblázatÉrtékesítés[[#This Row],[Termékazonosító]]<>\"\",VLOOKUP(táblázatÉrtékesítés[Termékazonosító],táblázatTermékek[[Termékazonosító]:[Név]],2,FALSE),\"\"),\"Ismeretlen termékazonosító\")","v":"Ing"},"2012-01-01",88,{"v":54,"d":"54 Ft"},734,{"v":1427,"d":"1,427"},{"$f":"táblázatÉrtékesítés[[#This Row],[Eladott mennyiség (kiskereskedelem)]]+táblázatÉrtékesítés[[#This Row],[Eladott mennyiség (nagykereskedelem)]]","v":{"v":2161,"d":"2,161"}},{"$f":"táblázatÉrtékesítés[[#This Row],[Eladott mennyiség (kiskereskedelem)]]*táblázatÉrtékesítés[[#This Row],[Egységenkénti kiskereskedelmi ár]]+táblázatÉrtékesítés[[#This Row],[Eladott mennyiség (nagykereskedelem)]]*táblázatÉrtékesítés[[#This Row],[Egységenkénti nagykereskedelmi ár*]]","v":{"v":141650,"d":"141,650 Ft"}}]
[null,2,{"$f":"IFERROR(IF(táblázatÉrtékesítés[[#This Row],[Termékazonosító]]<>\"\",VLOOKUP(táblázatÉrtékesítés[Termékazonosító],táblázatTermékek[[Termékazonosító]:[Név]],2,FALSE),\"\"),\"Ismeretlen termékazonosító\")","v":"Szandál"},"2012-01-01",70,{"v":44,"d":"44 Ft"},744,{"v":1043,"d":"1,043"},{"$f":"táblázatÉrtékesítés[[#This Row],[Eladott mennyiség (kiskereskedelem)]]+táblázatÉrtékesítés[[#This Row],[Eladott mennyiség (nagykereskedelem)]]","v":{"v":1787,"d":"1,787"}},{"$f":"táblázatÉrtékesítés[[#This Row],[Eladott mennyiség (kiskereskedelem)]]*táblázatÉrtékesítés[[#This Row],[Egységenkénti kiskereskedelmi ár]]+táblázatÉrtékesítés[[#This Row],[Eladott mennyiség (nagykereskedelem)]]*táblázatÉrtékesítés[[#This Row],[Egységenkénti nagykereskedelmi ár*]]","v":{"v":97972,"d":"97,972 Ft"}}]
[null,3,{"$f":"IFERROR(IF(táblázatÉrtékesítés[[#This Row],[Termékazonosító]]<>\"\",VLOOKUP(táblázatÉrtékesítés[Termékazonosító],táblázatTermékek[[Termékazonosító]:[Név]],2,FALSE),\"\"),\"Ismeretlen termékazonosító\")","v":"Esernyő"},"2012-01-01",63,{"v":44,"d":"44 Ft"},681,{"v":1523,"d":"1,523"},{"$f":"táblázatÉrtékesítés[[#This Row],[Eladott mennyiség (kiskereskedelem)]]+táblázatÉrtékesítés[[#This Row],[Eladott mennyiség (nagykereskedelem)]]","v":{"v":2204,"d":"2,204"}},{"$f":"táblázatÉrtékesítés[[#This Row],[Eladott mennyiség (kiskereskedelem)]]*táblázatÉrtékesítés[[#This Row],[Egységenkénti kiskereskedelmi ár]]+táblázatÉrtékesítés[[#This Row],[Eladott mennyiség (nagykereskedelem)]]*táblázatÉrtékesítés[[#This Row],[Egységenkénti nagykereskedelmi ár*]]","v":{"v":109915,"d":"109,915 Ft"}}]
[null,4,{"$f":"IFERROR(IF(táblázatÉrtékesítés[[#This Row],[Termékazonosító]]<>\"\",VLOOKUP(táblázatÉrtékesítés[Termékazonosító],táblázatTermékek[[Termékazonosító]:[Név]],2,FALSE),\"\"),\"Ismeretlen termékazonosító\")","v":"Vizes palackok"},"2012-01-01",35,{"v":27,"d":"27 Ft"},602,{"v":1822,"d":"1,822"},{"$f":"táblázatÉrtékesítés[[#This Row],[Eladott mennyiség (kiskereskedelem)]]+táblázatÉrtékesítés[[#This Row],[Eladott mennyiség (nagykereskedelem)]]","v":{"v":2424,"d":"2,424"}},{"$f":"táblázatÉrtékesítés[[#This Row],[Eladott mennyiség (kiskereskedelem)]]*táblázatÉrtékesítés[[#This Row],[Egységenkénti kiskereskedelmi ár]]+táblázatÉrtékesítés[[#This Row],[Eladott mennyiség (nagykereskedelem)]]*táblázatÉrtékesítés[[#This Row],[Egységenkénti nagykereskedelmi ár*]]","v":{"v":70264,"d":"70,264 Ft"}}]
[null,1,{"$f":"IFERROR(IF(táblázatÉrtékesítés[[#This Row],[Termékazonosító]]<>\"\",VLOOKUP(táblázatÉrtékesítés[Termékazonosító],táblázatTermékek[[Termékazonosító]:[Név]],2,FALSE),\"\"),\"Ismeretlen termékazonosító\")","v":"Ing"},"2012-02-01",55,{"v":44,"d":"44 Ft"},678,{"v":1515,"d":"1,515"},{"$f":"táblázatÉrtékesítés[[#This Row],[Eladott mennyiség (kiskereskedelem)]]+táblázatÉrtékesítés[[#This Row],[Eladott mennyiség (nagykereskedelem)]]","v":{"v":2193,"d":"2,193"}},{"$f":"táblázatÉrtékesítés[[#This Row],[Eladott mennyiség (kiskereskedelem)]]*táblázatÉrtékesítés[[#This Row],[Egységenkénti kiskereskedelmi ár]]+táblázatÉrtékesítés[[#This Row],[Eladott mennyiség (nagykereskedelem)]]*táblázatÉrtékesítés[[#This Row],[Egységenkénti nagykereskedelmi ár*]]","v":{"v":103950,"d":"103,950 Ft"}}]
[null,2,{"$f":"IFERROR(IF(táblázatÉrtékesítés[[#This Row],[Termékazonosító]]<>\"\",VLOOKUP(táblázatÉrtékesítés[Termékazonosító],táblázatTermékek[[Termékazonosító]:[Név]],2,FALSE),\"\"),\"Ismeretlen termékazonosító\")","v":"Szandál"},"2012-02-01",83,{"v":54,"d":"54 Ft"},753,{"v":1005,"d":"1,005"},{"$f":"táblázatÉrtékesítés[[#This Row],[Eladott mennyiség (kiskereskedelem)]]+táblázatÉrtékesítés[[#This Row],[Eladott mennyiség (nagykereskedelem)]]","v":{"v":1758,"d":"1,758"}},{"$f":"táblázatÉrtékesítés[[#This Row],[Eladott mennyiség (kiskereskedelem)]]*táblázatÉrtékesítés[[#This Row],[Egységenkénti kiskereskedelmi ár]]+táblázatÉrtékesítés[[#This Row],[Eladott mennyiség (nagykereskedelem)]]*táblázatÉrtékesítés[[#This Row],[Egységenkénti nagykereskedelmi ár*]]","v":{"v":116769,"d":"116,769 Ft"}}]
[null,3,{"$f":"IFERROR(IF(táblázatÉrtékesítés[[#This Row],[Termékazonosító]]<>\"\",VLOOKUP(táblázatÉrtékesítés[Termékazonosító],táblázatTermékek[[Termékazonosító]:[Név]],2,FALSE),\"\"),\"Ismeretlen termékazonosító\")","v":"Esernyő"},"2012-02-01",34,{"v":34,"d":"34 Ft"},986,{"v":1069,"d":"1,069"},{"$f":"táblázatÉrtékesítés[[#This Row],[Eladott mennyiség (kiskereskedelem)]]+táblázatÉrtékesítés[[#This Row],[Eladott mennyiség (nagykereskedelem)]]","v":{"v":2055,"d":"2,055"}},{"$f":"táblázatÉrtékesítés[[#This Row],[Eladott mennyiség (kiskereskedelem)]]*táblázatÉrtékesítés[[#This Row],[Egységenkénti kiskereskedelmi ár]]+táblázatÉrtékesítés[[#This Row],[Eladott mennyiség (nagykereskedelem)]]*táblázatÉrtékesítés[[#This Row],[Egységenkénti nagykereskedelmi ár*]]","v":{"v":69870,"d":"69,870 Ft"}}]
[null,4,{"$f":"IFERROR(IF(táblázatÉrtékesítés[[#This Row],[Termékazonosító]]<>\"\",VLOOKUP(táblázatÉrtékesítés[Termékazonosító],táblázatTermékek[[Termékazonosító]:[Név]],2,FALSE),\"\"),\"Ismeretlen termékazonosító\")","v":"Vizes palackok"},"2012-02-01",35,{"v":25,"d":"25 Ft"},848,{"v":1211,"d":"1,211"},{"$f":"táblázatÉrtékesítés[[#This Row],[Eladott mennyiség (kiskereskedelem)]]+táblázatÉrtékesítés[[#This Row],[Eladott mennyiség (nagykereskedelem)]]","v":{"v":2059,"d":"2,059"}},{"$f":"táblázatÉrtékesítés[[#This Row],[Eladott mennyiség (kiskereskedelem)]]*táblázatÉrtékesítés[[#This Row],[Egységenkénti kiskereskedelmi ár]]+táblázatÉrtékesítés[[#This Row],[Eladott mennyiség (nagykereskedelem)]]*táblázatÉrtékesítés[[#This Row],[Egységenkénti nagykereskedelmi ár*]]","v":{"v":59955,"d":"59,955 Ft"}}]
[null,5,{"$f":"IFERROR(IF(táblázatÉrtékesítés[[#This Row],[Termékazonosító]]<>\"\",VLOOKUP(táblázatÉrtékesítés[Termékazonosító],táblázatTermékek[[Termékazonosító]:[Név]],2,FALSE),\"\"),\"Ismeretlen termékazonosító\")","v":"Rövidnadrág"},"2012-02-01",41,{"v":38,"d":"38 Ft"},980,{"v":1330,"d":"1,330"},{"$f":"táblázatÉrtékesítés[[#This Row],[Eladott mennyiség (kiskereskedelem)]]+táblázatÉrtékesítés[[#This Row],[Eladott mennyiség (nagykereskedelem)]]","v":{"v":2310,"d":"2,310"}},{"$f":"táblázatÉrtékesítés[[#This Row],[Eladott mennyiség (kiskereskedelem)]]*táblázatÉrtékesítés[[#This Row],[Egységenkénti kiskereskedelmi ár]]+táblázatÉrtékesítés[[#This Row],[Eladott mennyiség (nagykereskedelem)]]*táblázatÉrtékesítés[[#This Row],[Egységenkénti nagykereskedelmi ár*]]","v":{"v":90720,"d":"90,720 Ft"}}]
[null,1,{"$f":"IFERROR(IF(táblázatÉrtékesítés[[#This Row],[Termékazonosító]]<>\"\",VLOOKUP(táblázatÉrtékesítés[Termékazonosító],táblázatTermékek[[Termékazonosító]:[Név]],2,FALSE),\"\"),\"Ismeretlen termékazonosító\")","v":"Ing"},"2012-02-29",27,{"v":18,"d":"18 Ft"},533,{"v":1936,"d":"1,936"},{"$f":"táblázatÉrtékesítés[[#This Row],[Eladott mennyiség (kiskereskedelem)]]+táblázatÉrtékesítés[[#This Row],[Eladott mennyiség (nagykereskedelem)]]","v":{"v":2469,"d":"2,469"}},{"$f":"táblázatÉrtékesítés[[#This Row],[Eladott mennyiség (kiskereskedelem)]]*táblázatÉrtékesítés[[#This Row],[Egységenkénti kiskereskedelmi ár]]+táblázatÉrtékesítés[[#This Row],[Eladott mennyiség (nagykereskedelem)]]*táblázatÉrtékesítés[[#This Row],[Egységenkénti nagykereskedelmi ár*]]","v":{"v":49239,"d":"49,239 Ft"}}]
[null,2,{"$f":"IFERROR(IF(táblázatÉrtékesítés[[#This Row],[Termékazonosító]]<>\"\",VLOOKUP(táblázatÉrtékesítés[Termékazonosító],táblázatTermékek[[Termékazonosító]:[Név]],2,FALSE),\"\"),\"Ismeretlen termékazonosító\")","v":"Szandál"},"2012-02-29",38,{"v":28,"d":"28 Ft"},952,{"v":1512,"d":"1,512"},{"$f":"táblázatÉrtékesítés[[#This Row],[Eladott mennyiség (kiskereskedelem)]]+táblázatÉrtékesítés[[#This Row],[Eladott mennyiség (nagykereskedelem)]]","v":{"v":2464,"d":"2,464"}},{"$f":"táblázatÉrtékesítés[[#This Row],[Eladott mennyiség (kiskereskedelem)]]*táblázatÉrtékesítés[[#This Row],[Egységenkénti kiskereskedelmi ár]]+táblázatÉrtékesítés[[#This Row],[Eladott mennyiség (nagykereskedelem)]]*táblázatÉrtékesítés[[#This Row],[Egységenkénti nagykereskedelmi ár*]]","v":{"v":78512,"d":"78,512 Ft"}}]
[null,3,{"$f":"IFERROR(IF(táblázatÉrtékesítés[[#This Row],[Termékazonosító]]<>\"\",VLOOKUP(táblázatÉrtékesítés[Termékazonosító],táblázatTermékek[[Termékazonosító]:[Név]],2,FALSE),\"\"),\"Ismeretlen termékazonosító\")","v":"Esernyő"},"2012-02-29",92,{"v":92,"d":"92 Ft"},956,{"v":1266,"d":"1,266"},{"$f":"táblázatÉrtékesítés[[#This Row],[Eladott mennyiség (kiskereskedelem)]]+táblázatÉrtékesítés[[#This Row],[Eladott mennyiség (nagykereskedelem)]]","v":{"v":2222,"d":"2,222"}},{"$f":"táblázatÉrtékesítés[[#This Row],[Eladott mennyiség (kiskereskedelem)]]*táblázatÉrtékesítés[[#This Row],[Egységenkénti kiskereskedelmi ár]]+táblázatÉrtékesítés[[#This Row],[Eladott mennyiség (nagykereskedelem)]]*táblázatÉrtékesítés[[#This Row],[Egységenkénti nagykereskedelmi ár*]]","v":{"v":204424,"d":"204,424 Ft"}}]
[null,4,{"$f":"IFERROR(IF(táblázatÉrtékesítés[[#This Row],[Termékazonosító]]<>\"\",VLOOKUP(táblázatÉrtékesítés[Termékazonosító],táblázatTermékek[[Termékazonosító]:[Név]],2,FALSE),\"\"),\"Ismeretlen termékazonosító\")","v":"Vizes palackok"},"2012-02-29",43,{"v":36,"d":"36 Ft"},952,{"v":1390,"d":"1,390"},{"$f":"táblázatÉrtékesítés[[#This Row],[Eladott mennyiség (kiskereskedelem)]]+táblázatÉrtékesítés[[#This Row],[Eladott mennyiség (nagykereskedelem)]]","v":{"v":2342,"d":"2,342"}},{"$f":"táblázatÉrtékesítés[[#This Row],[Eladott mennyiség (kiskereskedelem)]]*táblázatÉrtékesítés[[#This Row],[Egységenkénti kiskereskedelmi ár]]+táblázatÉrtékesítés[[#This Row],[Eladott mennyiség (nagykereskedelem)]]*táblázatÉrtékesítés[[#This Row],[Egységenkénti nagykereskedelmi ár*]]","v":{"v":90976,"d":"90,976 Ft"}}]
[null,5,{"$f":"IFERROR(IF(táblázatÉrtékesítés[[#This Row],[Termékazonosító]]<>\"\",VLOOKUP(táblázatÉrtékesítés[Termékazonosító],táblázatTermékek[[Termékazonosító]:[Név]],2,FALSE),\"\"),\"Ismeretlen termékazonosító\")","v":"Rövidnadrág"},"2012-02-29",98,{"v":73,"d":"73 Ft"},530,{"v":1452,"d":"1,452"},{"$f":"táblázatÉrtékesítés[[#This Row],[Eladott mennyiség (kiskereskedelem)]]+táblázatÉrtékesítés[[#This Row],[Eladott mennyiség (nagykereskedelem)]]","v":{"v":1982,"d":"1,982"}},{"$f":"táblázatÉrtékesítés[[#This Row],[Eladott mennyiség (kiskereskedelem)]]*táblázatÉrtékesítés[[#This Row],[Egységenkénti kiskereskedelmi ár]]+táblázatÉrtékesítés[[#This Row],[Eladott mennyiség (nagykereskedelem)]]*táblázatÉrtékesítés[[#This Row],[Egységenkénti nagykereskedelmi ár*]]","v":{"v":157936,"d":"157,936 Ft"}}]
[null,1,{"$f":"IFERROR(IF(táblázatÉrtékesítés[[#This Row],[Termékazonosító]]<>\"\",VLOOKUP(táblázatÉrtékesítés[Termékazonosító],táblázatTermékek[[Termékazonosító]:[Név]],2,FALSE),\"\"),\"Ismeretlen termékazonosító\")","v":"Ing"},"2012-03-31",38,{"v":28,"d":"28 Ft"},973,{"v":1415,"d":"1,415"},{"$f":"táblázatÉrtékesítés[[#This Row],[Eladott mennyiség (kiskereskedelem)]]+táblázatÉrtékesítés[[#This Row],[Eladott mennyiség (nagykereskedelem)]]","v":{"v":2388,"d":"2,388"}},{"$f":"táblázatÉrtékesítés[[#This Row],[Eladott mennyiség (kiskereskedelem)]]*táblázatÉrtékesítés[[#This Row],[Egységenkénti kiskereskedelmi ár]]+táblázatÉrtékesítés[[#This Row],[Eladott mennyiség (nagykereskedelem)]]*táblázatÉrtékesítés[[#This Row],[Egységenkénti nagykereskedelmi ár*]]","v":{"v":76594,"d":"76,594 Ft"}}]
[null,2,{"$f":"IFERROR(IF(táblázatÉrtékesítés[[#This Row],[Termékazonosító]]<>\"\",VLOOKUP(táblázatÉrtékesítés[Termékazonosító],táblázatTermékek[[Termékazonosító]:[Név]],2,FALSE),\"\"),\"Ismeretlen termékazonosító\")","v":"Szandál"},"2012-03-31",50,{"v":36,"d":"36 Ft"},672,{"v":1105,"d":"1,105"},{"$f":"táblázatÉrtékesítés[[#This Row],[Eladott mennyiség (kiskereskedelem)]]+táblázatÉrtékesítés[[#This Row],[Eladott mennyiség (nagykereskedelem)]]","v":{"v":1777,"d":"1,777"}},{"$f":"táblázatÉrtékesítés[[#This Row],[Eladott mennyiség (kiskereskedelem)]]*táblázatÉrtékesítés[[#This Row],[Egységenkénti kiskereskedelmi ár]]+táblázatÉrtékesítés[[#This Row],[Eladott mennyiség (nagykereskedelem)]]*táblázatÉrtékesítés[[#This Row],[Egységenkénti nagykereskedelmi ár*]]","v":{"v":73380,"d":"73,380 Ft"}}]
[null,3,{"$f":"IFERROR(IF(táblázatÉrtékesítés[[#This Row],[Termékazonosító]]<>\"\",VLOOKUP(táblázatÉrtékesítés[Termékazonosító],táblázatTermékek[[Termékazonosító]:[Név]],2,FALSE),\"\"),\"Ismeretlen termékazonosító\")","v":"Esernyő"},"2012-03-31",24,{"v":23,"d":"23 Ft"},769,{"v":1629,"d":"1,629"},{"$f":"táblázatÉrtékesítés[[#This Row],[Eladott mennyiség (kiskereskedelem)]]+táblázatÉrtékesítés[[#This Row],[Eladott mennyiség (nagykereskedelem)]]","v":{"v":2398,"d":"2,398"}},{"$f":"táblázatÉrtékesítés[[#This Row],[Eladott mennyiség (kiskereskedelem)]]*táblázatÉrtékesítés[[#This Row],[Egységenkénti kiskereskedelmi ár]]+táblázatÉrtékesítés[[#This Row],[Eladott mennyiség (nagykereskedelem)]]*táblázatÉrtékesítés[[#This Row],[Egységenkénti nagykereskedelmi ár*]]","v":{"v":55923,"d":"55,923 Ft"}}]
[null,4,{"$f":"IFERROR(IF(táblázatÉrtékesítés[[#This Row],[Termékazonosító]]<>\"\",VLOOKUP(táblázatÉrtékesítés[Termékazonosító],táblázatTermékek[[Termékazonosító]:[Név]],2,FALSE),\"\"),\"Ismeretlen termékazonosító\")","v":"Vizes palackok"},"2012-03-31",72,{"v":57,"d":"57 Ft"},985,{"v":1848,"d":"1,848"},{"$f":"táblázatÉrtékesítés[[#This Row],[Eladott mennyiség (kiskereskedelem)]]+táblázatÉrtékesítés[[#This Row],[Eladott mennyiség (nagykereskedelem)]]","v":{"v":2833,"d":"2,833"}},{"$f":"táblázatÉrtékesítés[[#This Row],[Eladott mennyiség (kiskereskedelem)]]*táblázatÉrtékesítés[[#This Row],[Egységenkénti kiskereskedelmi ár]]+táblázatÉrtékesítés[[#This Row],[Eladott mennyiség (nagykereskedelem)]]*táblázatÉrtékesítés[[#This Row],[Egységenkénti nagykereskedelmi ár*]]","v":{"v":176256,"d":"176,256 Ft"}}]
[null,5,{"$f":"IFERROR(IF(táblázatÉrtékesítés[[#This Row],[Termékazonosító]]<>\"\",VLOOKUP(táblázatÉrtékesítés[Termékazonosító],táblázatTermékek[[Termékazonosító]:[Név]],2,FALSE),\"\"),\"Ismeretlen termékazonosító\")","v":"Rövidnadrág"},"2012-03-31",85,{"v":43,"d":"43 Ft"},721,{"v":1426,"d":"1,426"},{"$f":"táblázatÉrtékesítés[[#This Row],[Eladott mennyiség (kiskereskedelem)]]+táblázatÉrtékesítés[[#This Row],[Eladott mennyiség (nagykereskedelem)]]","v":{"v":2147,"d":"2,147"}},{"$f":"táblázatÉrtékesítés[[#This Row],[Eladott mennyiség (kiskereskedelem)]]*táblázatÉrtékesítés[[#This Row],[Egységenkénti kiskereskedelmi ár]]+táblázatÉrtékesítés[[#This Row],[Eladott mennyiség (nagykereskedelem)]]*táblázatÉrtékesítés[[#This Row],[Egységenkénti nagykereskedelmi ár*]]","v":{"v":122603,"d":"122,603 Ft"}}]
[null,1,{"$f":"IFERROR(IF(táblázatÉrtékesítés[[#This Row],[Termékazonosító]]<>\"\",VLOOKUP(táblázatÉrtékesítés[Termékazonosító],táblázatTermékek[[Termékazonosító]:[Név]],2,FALSE),\"\"),\"Ismeretlen termékazonosító\")","v":"Ing"},"2012-04-30",91,{"v":65,"d":"65 Ft"},603,{"v":1226,"d":"1,226"},{"$f":"táblázatÉrtékesítés[[#This Row],[Eladott mennyiség (kiskereskedelem)]]+táblázatÉrtékesítés[[#This Row],[Eladott mennyiség (nagykereskedelem)]]","v":{"v":1829,"d":"1,829"}},{"$f":"táblázatÉrtékesítés[[#This Row],[Eladott mennyiség (kiskereskedelem)]]*táblázatÉrtékesítés[[#This Row],[Egységenkénti kiskereskedelmi ár]]+táblázatÉrtékesítés[[#This Row],[Eladott mennyiség (nagykereskedelem)]]*táblázatÉrtékesítés[[#This Row],[Egységenkénti nagykereskedelmi ár*]]","v":{"v":134563,"d":"134,563 Ft"}}]
[null,2,{"$f":"IFERROR(IF(táblázatÉrtékesítés[[#This Row],[Termékazonosító]]<>\"\",VLOOKUP(táblázatÉrtékesítés[Termékazonosító],táblázatTermékek[[Termékazonosító]:[Név]],2,FALSE),\"\"),\"Ismeretlen termékazonosító\")","v":"Szandál"},"2012-04-30",91,{"v":55,"d":"55 Ft"},892,{"v":1823,"d":"1,823"},{"$f":"táblázatÉrtékesítés[[#This Row],[Eladott mennyiség (kiskereskedelem)]]+táblázatÉrtékesítés[[#This Row],[Eladott mennyiség (nagykereskedelem)]]","v":{"v":2715,"d":"2,715"}},{"$f":"táblázatÉrtékesítés[[#This Row],[Eladott mennyiség (kiskereskedelem)]]*táblázatÉrtékesítés[[#This Row],[Egységenkénti kiskereskedelmi ár]]+táblázatÉrtékesítés[[#This Row],[Eladott mennyiség (nagykereskedelem)]]*táblázatÉrtékesítés[[#This Row],[Egységenkénti nagykereskedelmi ár*]]","v":{"v":181437,"d":"181,437 Ft"}}]
[null,3,{"$f":"IFERROR(IF(táblázatÉrtékesítés[[#This Row],[Termékazonosító]]<>\"\",VLOOKUP(táblázatÉrtékesítés[Termékazonosító],táblázatTermékek[[Termékazonosító]:[Név]],2,FALSE),\"\"),\"Ismeretlen termékazonosító\")","v":"Esernyő"},"2012-04-30",42,{"v":42,"d":"42 Ft"},611,{"v":1181,"d":"1,181"},{"$f":"táblázatÉrtékesítés[[#This Row],[Eladott mennyiség (kiskereskedelem)]]+táblázatÉrtékesítés[[#This Row],[Eladott mennyiség (nagykereskedelem)]]","v":{"v":1792,"d":"1,792"}},{"$f":"táblázatÉrtékesítés[[#This Row],[Eladott mennyiség (kiskereskedelem)]]*táblázatÉrtékesítés[[#This Row],[Egységenkénti kiskereskedelmi ár]]+táblázatÉrtékesítés[[#This Row],[Eladott mennyiség (nagykereskedelem)]]*táblázatÉrtékesítés[[#This Row],[Egységenkénti nagykereskedelmi ár*]]","v":{"v":75264,"d":"75,264 Ft"}}]
[null,4,{"$f":"IFERROR(IF(táblázatÉrtékesítés[[#This Row],[Termékazonosító]]<>\"\",VLOOKUP(táblázatÉrtékesítés[Termékazonosító],táblázatTermékek[[Termékazonosító]:[Név]],2,FALSE),\"\"),\"Ismeretlen termékazonosító\")","v":"Vizes palackok"},"2012-04-30",85,{"v":43,"d":"43 Ft"},530,{"v":1039,"d":"1,039"},{"$f":"táblázatÉrtékesítés[[#This Row],[Eladott mennyiség (kiskereskedelem)]]+táblázatÉrtékesítés[[#This Row],[Eladott mennyiség (nagykereskedelem)]]","v":{"v":1569,"d":"1,569"}},{"$f":"táblázatÉrtékesítés[[#This Row],[Eladott mennyiség (kiskereskedelem)]]*táblázatÉrtékesítés[[#This Row],[Egységenkénti kiskereskedelmi ár]]+táblázatÉrtékesítés[[#This Row],[Eladott mennyiség (nagykereskedelem)]]*táblázatÉrtékesítés[[#This Row],[Egységenkénti nagykereskedelmi ár*]]","v":{"v":89727,"d":"89,727 Ft"}}]
[null,5,{"$f":"IFERROR(IF(táblázatÉrtékesítés[[#This Row],[Termékazonosító]]<>\"\",VLOOKUP(táblázatÉrtékesítés[Termékazonosító],táblázatTermékek[[Termékazonosító]:[Név]],2,FALSE),\"\"),\"Ismeretlen termékazonosító\")","v":"Rövidnadrág"},"2012-04-30",82,{"v":71,"d":"71 Ft"},716,{"v":1249,"d":"1,249"},{"$f":"táblázatÉrtékesítés[[#This Row],[Eladott mennyiség (kiskereskedelem)]]+táblázatÉrtékesítés[[#This Row],[Eladott mennyiség (nagykereskedelem)]]","v":{"v":1965,"d":"1,965"}},{"$f":"táblázatÉrtékesítés[[#This Row],[Eladott mennyiség (kiskereskedelem)]]*táblázatÉrtékesítés[[#This Row],[Egységenkénti kiskereskedelmi ár]]+táblázatÉrtékesítés[[#This Row],[Eladott mennyiség (nagykereskedelem)]]*táblázatÉrtékesítés[[#This Row],[Egységenkénti nagykereskedelmi ár*]]","v":{"v":147391,"d":"147,391 Ft"}}]
[null,1,{"$f":"IFERROR(IF(táblázatÉrtékesítés[[#This Row],[Termékazonosító]]<>\"\",VLOOKUP(táblázatÉrtékesítés[Termékazonosító],táblázatTermékek[[Termékazonosító]:[Név]],2,FALSE),\"\"),\"Ismeretlen termékazonosító\")","v":"Ing"},"2012-05-14",34,{"v":31,"d":"31 Ft"},850,{"v":1548,"d":"1,548"},{"$f":"táblázatÉrtékesítés[[#This Row],[Eladott mennyiség (kiskereskedelem)]]+táblázatÉrtékesítés[[#This Row],[Eladott mennyiség (nagykereskedelem)]]","v":{"v":2398,"d":"2,398"}},{"$f":"táblázatÉrtékesítés[[#This Row],[Eladott mennyiség (kiskereskedelem)]]*táblázatÉrtékesítés[[#This Row],[Egységenkénti kiskereskedelmi ár]]+táblázatÉrtékesítés[[#This Row],[Eladott mennyiség (nagykereskedelem)]]*táblázatÉrtékesítés[[#This Row],[Egységenkénti nagykereskedelmi ár*]]","v":{"v":76888,"d":"76,888 Ft"}}]
[null,2,{"$f":"IFERROR(IF(táblázatÉrtékesítés[[#This Row],[Termékazonosító]]<>\"\",VLOOKUP(táblázatÉrtékesítés[Termékazonosító],táblázatTermékek[[Termékazonosító]:[Név]],2,FALSE),\"\"),\"Ismeretlen termékazonosító\")","v":"Szandál"},"2012-05-14",64,{"v":40,"d":"40 Ft"},876,{"v":1663,"d":"1,663"},{"$f":"táblázatÉrtékesítés[[#This Row],[Eladott mennyiség (kiskereskedelem)]]+táblázatÉrtékesítés[[#This Row],[Eladott mennyiség (nagykereskedelem)]]","v":{"v":2539,"d":"2,539"}},{"$f":"táblázatÉrtékesítés[[#This Row],[Eladott mennyiség (kiskereskedelem)]]*táblázatÉrtékesítés[[#This Row],[Egységenkénti kiskereskedelmi ár]]+táblázatÉrtékesítés[[#This Row],[Eladott mennyiség (nagykereskedelem)]]*táblázatÉrtékesítés[[#This Row],[Egységenkénti nagykereskedelmi ár*]]","v":{"v":122584,"d":"122,584 Ft"}}]
[null,3,{"$f":"IFERROR(IF(táblázatÉrtékesítés[[#This Row],[Termékazonosító]]<>\"\",VLOOKUP(táblázatÉrtékesítés[Termékazonosító],táblázatTermékek[[Termékazonosító]:[Név]],2,FALSE),\"\"),\"Ismeretlen termékazonosító\")","v":"Esernyő"},"2012-05-14",33,{"v":30,"d":"30 Ft"},881,{"v":1149,"d":"1,149"},{"$f":"táblázatÉrtékesítés[[#This Row],[Eladott mennyiség (kiskereskedelem)]]+táblázatÉrtékesítés[[#This Row],[Eladott mennyiség (nagykereskedelem)]]","v":{"v":2030,"d":"2,030"}},{"$f":"táblázatÉrtékesítés[[#This Row],[Eladott mennyiség (kiskereskedelem)]]*táblázatÉrtékesítés[[#This Row],[Egységenkénti kiskereskedelmi ár]]+táblázatÉrtékesítés[[#This Row],[Eladott mennyiség (nagykereskedelem)]]*táblázatÉrtékesítés[[#This Row],[Egységenkénti nagykereskedelmi ár*]]","v":{"v":63543,"d":"63,543 Ft"}}]
[null,4,{"$f":"IFERROR(IF(táblázatÉrtékesítés[[#This Row],[Termékazonosító]]<>\"\",VLOOKUP(táblázatÉrtékesítés[Termékazonosító],táblázatTermékek[[Termékazonosító]:[Név]],2,FALSE),\"\"),\"Ismeretlen termékazonosító\")","v":"Vizes palackok"},"2012-05-14",29,{"v":27,"d":"27 Ft"},802,{"v":1548,"d":"1,548"},{"$f":"táblázatÉrtékesítés[[#This Row],[Eladott mennyiség (kiskereskedelem)]]+táblázatÉrtékesítés[[#This Row],[Eladott mennyiség (nagykereskedelem)]]","v":{"v":2350,"d":"2,350"}},{"$f":"táblázatÉrtékesítés[[#This Row],[Eladott mennyiség (kiskereskedelem)]]*táblázatÉrtékesítés[[#This Row],[Egységenkénti kiskereskedelmi ár]]+táblázatÉrtékesítés[[#This Row],[Eladott mennyiség (nagykereskedelem)]]*táblázatÉrtékesítés[[#This Row],[Egységenkénti nagykereskedelmi ár*]]","v":{"v":65054,"d":"65,054 Ft"}}]
[null,5,{"$f":"IFERROR(IF(táblázatÉrtékesítés[[#This Row],[Termékazonosító]]<>\"\",VLOOKUP(táblázatÉrtékesítés[Termékazonosító],táblázatTermékek[[Termékazonosító]:[Név]],2,FALSE),\"\"),\"Ismeretlen termékazonosító\")","v":"Rövidnadrág"},"2013-12-11",24,{"v":15,"d":"15 Ft"},824,{"v":1994,"d":"1,994"},{"$f":"táblázatÉrtékesítés[[#This Row],[Eladott mennyiség (kiskereskedelem)]]+táblázatÉrtékesítés[[#This Row],[Eladott mennyiség (nagykereskedelem)]]","v":{"v":2818,"d":"2,818"}},{"$f":"táblázatÉrtékesítés[[#This Row],[Eladott mennyiség (kiskereskedelem)]]*táblázatÉrtékesítés[[#This Row],[Egységenkénti kiskereskedelmi ár]]+táblázatÉrtékesítés[[#This Row],[Eladott mennyiség (nagykereskedelem)]]*táblázatÉrtékesítés[[#This Row],[Egységenkénti nagykereskedelmi ár*]]","v":{"v":49686,"d":"49,686 Ft"}}]

{"sheet":"Árlista","index":2,"n_rows":18,"n_cols":6,"rows_kept":18,"merged":[[15,1,15,5]]}
[null,"Termékárlista"]
[]
[null,"Adventure Works"]
[null,"Tölgy utca 23."]
[null,"2900 Budapest"]
[null,"Telefonszám: (10) 123 4517"]
[null,"Faxszám: (10) 123 4519"]
[null,"www.adventure-works.com",{"$nulls":3},"Utolsó frissítés: 2013. 08. 15."]
[]
[null,"Termékazonosító","Név","Leírás","Egységenkénti kiskereskedelmi ár","Egységenkénti nagykereskedelmi ár*"]
[null,1,"Ing","Érezze magát kellemes hűvösben egész nyáron át az előkezelt 100%-os pamutingünkben.",{"v":22,"d":"22 Ft"},{"v":15,"d":"15.00 Ft"}]
[null,2,"Szandál","Strapabíró, gumitalpú szandálunkat viselve a legforróbb homokon is kényelmesen sétálgathat.",{"v":10,"d":"10 Ft"},{"v":6,"d":"6.00 Ft"}]
[null,3,"Esernyő","Védelmet találhat a nap elől a hatalmas napernyőnk alatt, amely a káros UV sugarak 96%-át elnyeli.",{"v":30,"d":"30 Ft"},{"v":20,"d":"20.00 Ft"}]
[null,4,"Vizes palackok","Tökéletes hőmérsékletű vízzel olthatja szomját a vizes hűtőpalackunkból.",{"v":7,"d":"7 Ft"},{"v":5,"d":"5.00 Ft"}]
[null,5,"Rövidnadrág","Rendkívül gyorsan száradó nylon rövidnadrágunkban a vízből egyenesen beszállhat az autójába.",{"v":15,"d":"15 Ft"},{"v":8,"d":"8.00 Ft"}]
[]
[{"$nulls":5},"A listán nem szereplő termékekért hívjon fel bennünket."]
[{"$nulls":5},"*A nagykereskedelmi árak 12 vagy több egységnyi mennyiségre érvényesek."]

{"sheet":"Irányár-kimutatás","index":3,"n_rows":10,"n_cols":4,"rows_kept":10,"hidden":true,"merged":[[1,1,1,3]]}
[null,"Irányár-kimutatás"]
[null,"Hagyja rejtve ezt a munkalapot. Az alábbi kimutatáson végzett bármely módosítás következtében helytelen adatok keletkezhetnek a Termékértékesítési jelentésben. "]
[null,"Kijelölt termék:",{"$f":"IF(LEN(B5),B5,\"None\")","v":"Szandál"}]
[null,"Terméknév","Egységenkénti kiskereskedelmi ár","Összeg / Összes értékesítés (#)"]
[null,"Szandál",{"v":38,"d":"38 Ft"},2464]
[null,null,{"v":50,"d":"50 Ft"},1777]
[null,null,{"v":64,"d":"64 Ft"},2539]
[null,null,{"v":70,"d":"70 Ft"},1787]
[null,null,{"v":83,"d":"83 Ft"},1758]
[null,null,{"v":91,"d":"91 Ft"},2715]

{"sheet":"Értékesítésitendencia-kimutatás","index":4,"n_rows":9,"n_cols":3,"rows_kept":9,"hidden":true,"merged":[[1,1,1,3]]}
[null,"Értékesítési tendencia kimutatása"]
[null,"Hagyja rejtve ezt a munkalapot. Az alábbi kimutatáson végzett bármely módosítás következtében helytelen adatok keletkezhetnek a Termékértékesítési jelentésben. "]
[null,"Összeg / Összes értékesítés (#)","Terméknév"]
[null,"Ár dátuma","Szandál"]
[null,"jan",1787]
[null,"febr",4222]
[null,"márc",1777]
[null,"ápr",2715]
[null,"máj",2539]